Cogmind - Beta 15 @@@ ROGUE MODE // 2025.05.13 @ 22:50:34 Player: Epsilon 11 Result: Destroyed by 5M-G8N(R) with Subdweller Machine Gun Performance ------------- Evolutions (0) 0 Regions Visited (2) 400 Robots Destroyed (18) 90 Value Destroyed (447) 447 Prototype IDs (0) 0 Alien Tech Used (0) 0 Bonus (0) 0 TOTAL SCORE: 937 Bonus ------- None Cogmind --------- Core Integrity 0/250 Matter 124/300 Energy 100/100 System Corruption 0% Temperature Cool (0) Movement Core (50) Location -10/Subcaves Parts ------- > --- POWER (1) -------- (None) > --- PROPULSION (2) --- (None) > --- UTILITY (2) ------ (None) > --- WEAPON (2) ------- (None) > --- INVENTORY (5) ---- (None) Peak State ------------ > --- POWER ------------ Ion Engine > --- PROPULSION ------- Compact Wheel Subdweller Monowheel > --- UTILITY ---------- Small Storage Unit > --- WEAPON ----------- Medium Laser Grenade Launcher > --- INVENTORY -------- Huge Storage Unit EM Pulse Gun Light Assault Rifle [Rating: 7] Favorites ----------- Power Ion Engine Engine Ion Engine Propulsion Compact Wheel Wheel Compact Wheel Utility Small Storage Unit Storage Small Storage Unit Weapon Light Assault Rifle Energy Gun Medium Laser Ballistic Gun Light Assault Rifle Launcher Grenade Launcher Build | -11 -10 -10 ------- Run | Yrd Mat Sub Slots Evolved . | . . . Power . | . . . Propulsion . | . . . Utility . | . . . Weapon . | . . . Parts Attached 11 | 6 3 2 Power 2 | 1 1 . Engine 2 | 1 1 . Core . | . . . Reactor . | . . . Propulsion 3 | 2 . 1 Treads . | . . . Leg . | . . . Wheel 3 | 2 . 1 Hover . | . . . Flight . | . . . Utility 2 | 1 . 1 Device . | . . . Storage 2 | 1 . 1 Processor . | . . . Hackware . | . . . Protection . | . . . Artifact . | . . . Weapon 4 | 2 2 . Energy Gun 2 | 1 1 . Energy Cannon . | . . . Ballistic Gun 1 | 1 . . Ballistic Cannon . | . . . Launcher 1 | . 1 . Special Weapon . | . . . Impact Weapon . | . . . Slashing Weapon . | . . . Piercing Weapon . | . . . Special Melee Weapon . | . . . Unidentified Prototypes . | . . . Parts Lost 8 | . 1 7 Power 2 | . 1 1 Propulsion 3 | . . 3 Utility . | . . . Weapon 3 | . . 3 Highest Loss Streak 7 | . 1 7 To Critical Strikes . | . . . Average Backups 2 | 1 3 2 Power . | . . . Propulsion . | . . . Utility . | . . . Weapon 1 | . 1 1 Tool/Special . | . . . Unused Backups . | . . . Power . | . . . Propulsion . | . . . Utility . | . . . Weapon . | . . . Tool/Special . | . . . Average Slot Usage (%) 78 | . 84 68 Engine 12 | . 13 11 Wheel 25 | . 28 22 Storage 12 | . 14 11 Energy Gun 12 | . 14 11 Ballistic Gun 8 | . 14 . Launcher 4 | . . 11 Peak Build Rating 7 | 6 6 7 Average Rating 5 | 4 5 4 On Entrance 4 | . 6 6 Naked Turns 43 | . . 43 Heaviest Build 15 | 13 14 15 Greatest Support 36 | 26 26 36 Greatest Overweight (x) . | . . . Average Overweight (x) . | . . . Largest Inventory Capacity 25 | 8 8 25 Average Capacity 7 | 7 8 7 Most Carried 4 | 2 4 4 Average Carried 3 | 1 3 2 Final Capacity 8 | 8 8 5 Final Carried 3 | 2 3 . Class Distribution -------------------- 100% | Mutant Dominant Class ---------------- Mutant | -10/Materials Mutant | -10/Subcaves Resources | -11 -10 -10 ----------- Run | Yrd Mat Sub Matter Collected 341 | 181 138 22 Remotely . | . . . Salvage Created 420 | . 270 150 Parts 24 | . 16 8 Haulers Intercepted 1 | . 1 . Recyclers Shooed . | . . . Parts Field Recycled . | . . . Retrieved Matter . | . . . Parts Self-Destructed 16 | . . 16 Prevented . | . . . Kills | -11 -10 -10 ------- Run | Yrd Mat Sub Combat Hostiles Destroyed 17 | . 9 8 Guns 9 | . 8 1 AOE 8 | . 1 7 Classes Destroyed 4 | . 3 1 Hauler 1 | . 1 . Swarmer 8 | . 6 2 Grunt 3 | . 3 . Subdweller 6 | . . 6 Best Kill Streak 5 | . 5 5 Combat Bots Only 5 | . 5 5 Max Kills in Single Turn 2 | . 1 2 Gunslinging . | . . . Exploded 2 | . 1 2 Melee . | . . . Uniques/NPCs Destroyed . | . . . Combat | -11 -10 -10 -------- Run | Yrd Mat Sub Hostile Shots Fired 81 | . 31 50 Missed 34 | . 10 24 Hits 47 | . 21 26 Projectile 47 | . 21 26 Critical Strikes 1 | . . 1 Damage Taken 802 | . 199 603 Core 260 | . 10 250 Absorbed by Shields . | . . . Core Remaining (%) 100 | 100 . . Volleys Fired 46 | . 25 21 Largest 2 | . 2 2 Hottest 80 | . 70 80 Shots Fired 76 | . 49 27 Gun 57 | . 48 9 Cannon . | . . . Launcher 19 | . 1 18 Special . | . . . Kinetic 27 | . 24 3 Thermal 17 | . 12 5 Explosive 19 | . 1 18 Electromagnetic 13 | . 12 1 Robot Hit Streak 12 | . 5 12 Robot Miss Streak 4 | . 4 4 Penetration Max . | . . . Secondary Targets . | . . . Shots Hit Robots 35 | . 24 11 Core Hits 28 | . 12 16 Critical Kills . | . . . Critical Parts Destroyed . | . . . Critical Strikes 2 | . 2 . Burn 2 | . 2 . Melee Attacks . | . . . Impact . | . . . Slashing . | . . . Piercing . | . . . Sneak Attacks . | . . . Combat Hostiles . | . . . Follow-up Attacks . | . . . Damage Inflicted 1361 | . 477 884 Guns 331 | . 282 49 Cannons . | . . . Explosions 1030 | . 195 835 Melee . | . . . Ramming . | . . . Kinetic 116 | . 101 15 Thermal 138 | . 114 24 Explosive 1030 | . 195 835 Electromagnetic 77 | . 67 10 Impact . | . . . Slashing . | . . . Piercing . | . . . Highest Corruption . | . . . Average Corruption . | . . . Corruption Purged . | . . . Corruption Blocked . | . . . Overload Shots . | . . . Overflow Damage 9 | . 9 . Projectiles . | . . . Explosions 9 | . 9 . Melee . | . . . Knockbacks . | . . . Impact . | . . . Kinetic . | . . . Secondary . | . . . Self-Inflicted Damage 96 | . . 96 Shots 4 | . . 4 Rammed . | . . . Targets Rammed . | . . . Kicked . | . . . Crushed . | . . . Highest Temperature 66 | . 66 . Average Temperature 26 | . 26 . Received Heat Transfer 132 | . 36 96 Siege Activations . | . . . Martial Activations . | . . . Shielding Activations . | . . . Robots Disrupted . | . . . Combat Hostiles . | . . . Robots Corrupted . | . . . Combat Hostiles . | . . . Parts Fried . | . . . Impact Corruptions . | . . . Robots Melted . | . . . Combat Hostiles . | . . . Parts Melted 4 | . 4 . Heat Transferred 555 | . 481 74 Parts Sabotaged . | . . . Parts Stolen . | . . . Parts Stripped . | . . . Power Chain Reactions . | . . . Alert | -11 -10 -10 ------- Run | Yrd Mat Sub Maximum Alert Level 1 | . 1 . Low Security (%) 94 | 100 93 . Level 1 5 | . 6 . Level 2 . | . . . Level 3 . | . . . Level 4 . | . . . Level 5 . | . . . High Security . | . . . Max Security . | . . . Peak Influence 214 | . 214 . Initial . | . . . Average 74 | . 83 . Influence Increases 429 | . 344 85 Destroy 0b10 Robot/C 220 | . 180 40 Destroy 0b10 Robot/NC 5 | . 5 . Destroy Leader 32 | . 32 . Successful Hack 32 | . 32 . Disable Machine 15 | . 15 . Destroy Structure 35 | . 35 . Lose Combat Pursuer 90 | . 45 45 Influence Decreases 429 | . 337 92 Entered New Map 4 | . . 4 Time Decay 205 | . 177 28 Lost Part 70 | . 10 60 Purge Threat 150 | . 150 . Squads Dispatched . | . . . Investigation . | . . . Extermination . | . . . Reinforcement . | . . . Assault . | . . . Garrison . | . . . Intercept . | . . . Searches Triggered . | . . . Construction Impeded . | . . . Haulers Reinforced . | . . . Active Scanning Responses . | . . . Cargo Convoy Interrupts . | . . . Stealth | -11 -10 -10 --------- Run | Yrd Mat Sub Distress Signals 2 | . 2 . Communications Jammed . | . . . Distress Signals . | . . . Times Spotted 29 | . 15 14 Peak Tracking Total 5 | . 4 5 Tactical Retreats 4 | . 3 1 Traps | -11 -10 -10 ------- Run | Yrd Mat Sub Traps Triggered . | . . . Indirectly . | . . . Trap Hack Attempts . | . . . Triggered . | . . . Disarmed . | . . . Reprogrammed . | . . . Reused . | . . . Traps Extracted . | . . . Installed . | . . . Triggered . | . . . Machines | -11 -10 -10 ---------- Run | Yrd Mat Sub Machines Disabled 2 | . 1 1 Max in Single Turn 1 | . 1 1 Machines Repaired . | . . . Machines Dismantled . | . . . Machines Sabotaged . | . . . Overloaded Fab Kills . | . . . Hacking | -11 -10 -10 --------- Run | Yrd Mat Sub Machines Accessed 7 | . 7 . Terminals 7 | . 7 . Fabricators . | . . . Repair Stations . | . . . Recycling Units . | . . . Scanalyzers . | . . . Garrison Access . | . . . Total Hacks 24 | . 24 . Successful 13 | . 13 . Failed 11 | . 11 . Catastrophic 1 | . 1 . Database Lockouts . | . . . Manual 19 | . 19 . Terminals 24 | . 24 . Fabricators . | . . . Repair Stations . | . . . Recycling Units . | . . . Scanalyzers . | . . . Garrison Access . | . . . Terminal Hacks 4 | . 4 . Terminal Index 1 | . 1 . Unreport Threat 1 | . 1 . Locate Traps 1 | . 1 . Registered Components 1 | . 1 . Fabricator Hacks . | . . . Repair Station Hacks . | . . . Recycling Unit Hacks . | . . . Scanalyzer . | . . . Garrison Access Hacks . | . . . Unauthorized Hacks 9 | . 9 . Terminals 9 | . 9 . Botnet 3 | . 3 . Operators 1 | . 1 . Skim 5 | . 5 . Fabricators . | . . . Repair Stations . | . . . Recycling Units . | . . . Scanalyzers . | . . . Garrison Access . | . . . Data Cores Recovered . | . . . Used . | . . . Hacking Detections 7 | . 7 . Full Trace Events . | . . . Feedback Events . | . . . Feedback Blocked . | . . . Robot Schematics Acquired . | . . . Robots Built . | . . . Authchips . | . . . Time . | . . . Total Robot Build Rating . | . . . Part Schematics Acquired . | . . . Parts Built . | . . . Authchips . | . . . Time . | . . . Total Part Build Rating . | . . . Parts Repaired . | . . . Time . | . . . Parts Recycled . | . . . Recycled Matter . | . . . Retrieved Matter . | . . . Retrieved Components . | . . . Parts Scanalyzed . | . . . Part Schematics Acquired . | . . . Parts Damaged . | . . . Bothacking | -11 -10 -10 ------------ Run | Yrd Mat Sub Used RIF Installer . | . . . Robots Hacked . | . . . Non-combat . | . . . Combat . | . . . Robot Hacks Applied . | . . . Relay Couplers Released . | . . . Fabnet Peak Effective % . | . . . Robots Rewired . | . . . Allies Hacked . | . . . Hacks Repelled . | . . . Allies | -11 -10 -10 -------- Run | Yrd Mat Sub Total Allies . | . . . Largest Group . | . . . Highest-Rated Group . | . . . Highest-Rated Ally . | . . . Total Orders . | . . . Ally Attacks . | . . . Total Damage . | . . . Kills . | . . . Allies Corrupted . | . . . Allies Melted . | . . . Intel | -11 -10 -10 ------- Run | Yrd Mat Sub Active Infowar (turns) . | . . . Robot Analysis Total . | . . . Derelict Logs Recovered . | . . . Drone Launches . | . . . Drone Recoveries . | . . . Exploration | -11 -10 -10 ------------- Run | Yrd Mat Sub Turns Passed 719 | 48 408 263 Spaces Moved 670 | 42 359 269 Core 88 | 2 . 86 Treads . | . . . Legs . | . . . Wheels 582 | 40 359 183 Hover . | . . . Flight . | . . . Fastest Speed 50 | 50 90 50 Average Speed 84 | 87 90 77 Slowest Speed 105 | 90 90 105 Overloaded Moves . | . . . Propulsion Burnouts . | . . . Robots Hopped . | . . . Potential Cave-ins . | . . . Cave-ins Triggered . | . . . Exploration Rate (%) 29 | 3 70 16 Regions Visited 2 Branch Regions 1 Pre-discovered Areas . | . . . Known Exits Taken 1 | . 1 . Unknown Exits Taken 1 | 1 . . Scrap Searched . | . . . Spaces Dug . | . . . Terrain Destroyed 108 | . 32 76 Melee . | . . . Projectile . | . . . AOE 108 | . 32 76 Terrain Rammed . | . . . Walls Destroyed . | . . . Machines Disabled . | . . . Actions | -11 -10 -10 --------- Run | Yrd Mat Sub Total 743 | 49 398 296 Wait 10 | . 10 . Move 668 | 41 358 269 Hop . | . . . Pick Up 5 | 2 2 1 Fast Attach 6 | 6 . . Attach 5 | . 1 4 Detach . | . . . Swap 3 | . 2 1 Drop . | . . . Fire 46 | . 25 21 Melee . | . . . Ram . | . . . Kick . | . . . Crush . | . . . Escape Stasis . | . . . Rewire . | . . . Trap . | . . . Miscellaneous . | . . . Route ------- -11/Scrapyard -10/Materials (discovered 5 exits: *Mat x2 / [*Min x2] / *Sub) -10/Subcaves History --------- Turn | Location | Event 13 | -11/Scrapyard | Discovered new exit (range 15) 49 | -11/Scrapyard | Entered Materials 158 | -10/Materials | Discovered new exit (range 15) 211 | -10/Materials | Discovered new exit (range 8) 308 | -10/Materials | Discovered new exit (range 6) 317 | -10/Materials | Build established: Mutant 400 | -10/Materials | Identified exit to Subcaves 400 | -10/Materials | Identified exit to Materials 434 | -10/Materials | Learned location of 1 exit from Storage 457 | -10/Materials | Entered Subcaves 662 | -10/Subcaves | Ambushed by Subdweller buried in earth 677 | -10/Subcaves | Released all parts (3) 685 | -10/Subcaves | Core integrity fell below 50% 706 | -10/Subcaves | Lost 7 parts (1p3n3w) 719 | -10/Subcaves | Core integrity fell below 20% 720 | -10/Subcaves | Destroyed by 5M-G8N(R) with Subdweller Machine Gun Last Messages --------------- 00647_ Subatomizers dissect the Sub. Monowheel. 00648_ Wheel destroyed. 00651_ Machine disabled. 00651_ S-10 Pest destroyed. 00661_ Subatomizers dissect the Sub. Monowheel. 00663_ ZY-ZAS(R): "NOSTUCKSUB!" 00664_ Med. Laser destroyed. 00664_ Sub. Monowheel destroyed. 00665_ DD-SFE(R) destroyed. 00666_ EM Pulse Gun destroyed. 00668_ Grenade Launcher destroyed. 00674_ Subatomizers dissect the Sub. Monowheel. 00674_ Com. Wheel destroyed. 00675_ Ion Engine destroyed. 00677_ Released Sml. Storage Unit. 00677_ Released Huge Storage Unit. 00677_ Released Lgt. Assault Rifle. 00685_ Subatomizers dissect the Lgt. Assault Rifle. 00686_ The unstable cave ceiling collapses. 00718_ ZY-ZAS(R) affixes Scrap Shield Fragment to Scrap Shield. Map ----- +----------------------------------------------------+ | ?????????????????????????????????????????????????? | | ?????????????????????????????????????????????????? | | ?????????????????????????????????????????????????? | | ???####????????????????????????????###???????????? | | ### #???###?????????????????###### ##??????????? | | #???## #??????????????### ## ##?????????? | | #???## ??????????????#" ##????????? | | #???? #???????????### #????????? | | #?????# ##???????### ## ######???? | | #??????# ###????## # # # #???? | | ##??????# ##??### # # #?# #???? | | #??????# ##?#"# ### ### ####? | | # #####??# ### & & #? | | ## ##??# #? | | ?# ##?## #" #? | | ?# ##?# # # "" #? | | ?# ### #######"" #? | | ## R ####"" #? | | ## ####" ### #? | | ####### #?##" ## #? | | #?????## ##??## # ### ##? | | #### ##??????# ## #???#####" ## #?? | | ##??## #??????### % " #?????## " ## #?? | | #????# ##??????# # R ##?????# " ######?? | | ?????## ###????### R #?????#" "##??????? | | ??????# #???# ##R@#####?????#""""#???????? | | #??????# ##???#""" # ????????#"" ##???????? | | ???????#### ###?###"" ###??????# " ?????????? | | ???????# # "##"##"" ????????? "#?????????? | | ??????## ## " """"" "????????? #??????????? | | ??????# " """" ""??????????????????????? | | ??????# # # " "# ??????????????????????? | | ??????##### ## ## ## ?#"?????????????????????? | | ????????### # "##? "??"?????????????????????? | | ????????# ## ##??# ????????????????????????? | | ???????### #???#"????????????????????????? | | ?????### ##"###?????????????????????????????? | | ?????# !%# ###???????????????????????????????? | | ???### [ ######????????????????????????????? | | ???# ### ###??????????????????????????? | | ???## # = #??????????????????????????? | | ????# " #??????????????????????????? | | ????###### [ #%[ #?????????????????????????? | | ?????????# !!##### % #?????????????????????????? | | ?????????# #???? "#???????????????????????? | | ?????????# #???? * #???????????????????????? | | ?????????### #????? %[#???????????????????????? | | ??????????? #????? ="#???????????????????????? | | ??????????## ##????? " #???????????????????????? | | ??????????? #?????? """"#???????????????????????? | +----------------------------------------------------+ Best States ------------- Heat Dissipation 25 Energy Generation 10 Energy Capacity 250 Matter Stores 300 Matter Capacity 300 Sight Range 16 Terrain Scan Density 10 Evasion (%) 50 Item Schematics ----------------- None Robot Schematics ------------------ None Fabricated ------------ Nothing Repaired ---------- Nothing Alien Tech Used ----------------- None Achievements -------------- None Challenges ------------ None Game ------ Seed SchematicBiometalMaul Manual? 0 Play Time 00:12:16 Cumulative 229.1 hours Start 2025.05.13 @ 22:39:18 End 2025.05.13 @ 22:50:34 Sessions 1 Manual Loads 0 Difficulty Rogue Special Mode None Game No. 109 Rogue 66 Adventurer 43 Explorer 0 Win Type - Total 6 Types 4/0/1/0/0/0/0/1/0/0 Lore% 70 Gallery% 66 Achievement% 61 Wizard Run 0 Options --------- Layout 0 ASCII 0 Keyboard 0 Movement Mouse Keybinds 0 Fullscreen 1 Font 24/Smallcaps Map View 76x50 Zoom Use 0% Tactical HUD 1 Map Filters NONE Filters NONE Steam 1 RUN: 68df8c95-4fd7-44dc-bfda-aebbfb7ad058